[Event "FIDE WCCC Open-12 2024"]
[Site "Montesilvano"]
[Date "2024.11.18"]
[Round "1.9"]
[White "Saminskij, Jan"]
[Black "Dauren, Darmen"]
[Result "1/2-1/2"]
[ECO "B02"]
[WhiteElo "2202"]
[BlackElo "1820"]
[PlyCount "108"]
[EventDate "2024.11.18"]
[EventType "swiss"]
[EventCountry "ITA"]
[TimeControl "5400+30"]

1. e4 {[%emt 0:00:54]} c5 {[%emt 0:00:10]} 2. Nf3 {[%emt 0:01:39]} Nf6 {[%emt 0:00:19]} 3. Nc3 {[%emt 0:06:36]} d5 {[%emt 0:02:10]} 4. e5 {[%emt 0:04:34]} Nfd7 {[%emt 0:00:14]} 5. Nxd5 {[%emt 0:10:31]} Nxe5 {[%emt 0:00:20]} 6. Ne3 {[%emt 0:00:39]} Nxf3+ {[%emt 0:08:20]} 7. Qxf3 {[%emt 0:00:08]} Nc6 {[%emt 0:00:10]} 8. c3 {[%emt 0:03:16]} a6 {[%emt 0:05:00]} 9. Be2 {[%emt 0:03:52]} e6 {[%emt 0:05:23]} 10. O-O {[%emt 0:02:34]} Be7 {[%emt 0:06:51]} 11. Rd1 {[%emt 0:03:34]} O-O {[%emt 0:02:23]} 12. b3 {[%emt 0:01:36]} Bd7 {[%emt 0:10:16]} 13. d4 {[%emt 0:02:53]} cxd4 {[%emt 0:06:08]} 14. cxd4 {[%emt 0:01:04]} Bf6 {[%emt 0:01:06]} 15. Bb2 {[%emt 0:00:16]} Rb8 {[%emt 0:11:44]} 16. Ng4 {[%emt 0:04:06]} Re8 {[%emt 0:08:03]} 17. a3 {[%emt 0:04:18]} Na7 {[%emt 0:07:49]} 18. Qg3 {[%emt 0:09:37]} Kh8 {[%emt 0:04:34]} 19. Rab1 {[%emt 0:01:41]} Nb5 {[%emt 0:05:07]} 20. a4 {[%emt 0:01:10]} Nc7 {[%emt 0:00:06]} 21. Nxf6 {[%emt 0:00:24]} gxf6 {[%emt 0:00:06]} 22. d5 {[%emt 0:01:56]} e5 {[%emt 0:01:55]} 23. Bd3 {[%emt 0:05:58]} Rg8 {[%emt 0:01:12]} 24. Qh4 {[%emt 0:00:23]} Rg7 {[%emt 0:00:05]} 25. Be4 {[%emt 0:05:13]} Ne8 {[%emt 0:00:19]} 26. d6 {[%emt 0:03:11]} b6 {[%emt 0:05:34]} 27. Rbc1 {[%emt 0:03:22]} f5 {[%emt 0:01:30]} 28. Qxd8 {[%emt 0:00:05]} Rxd8 {[%emt 0:00:01]} 29. Bb7 {[%emt 0:00:13]} f6 {[%emt 0:00:06]} 30. Bxa6 {[%emt 0:00:38]} Be6 {[%emt 0:00:17]} 31. Rc6 {[%emt 0:04:51]} Bxb3 {[%emt 0:00:38]} 32. Rd3 {[%emt 0:00:02]} Bxa4 {[%emt 0:00:11]} 33. Rxb6 {[%emt 0:00:08]} Rgd7 {[%emt 0:03:34]} 34. Ba3 {[%emt 0:00:49]} Ra7 {[%emt 0:00:40]} 35. Rc3 {[%emt 0:01:07]} Bd7 {[%emt 0:00:18]} 36. Bf1 {[%emt 0:07:38]} Ng7 {[%emt 0:00:32]} 37. Rcb3 {[%emt 0:00:47]} Ne6 {[%emt 0:00:36]} 38. Rb7 {[%emt 0:00:32]} Rda8 {[%emt 0:01:06]} 39. Bc1 {[%emt 0:00:16]} f4 {[%emt 0:00:21]} 40. Bb2 {[%emt 0:00:40]} Nc5 {[%emt 0:00:36]} 41. Rxa7 {[%emt 0:00:26]} Rxa7 {[%emt 0:00:02]} 42. Rc3 {[%emt 0:00:38]} Ne6 {[%emt 0:01:34]} 43. h4 {[%emt 0:00:39]} Rb7 {[%emt 0:00:15]} 44. Rc2 {[%emt 0:00:54]} Rb6 {[%emt 0:01:38]} 45. Rd2 {[%emt 0:00:26]} Ng7 {[%emt 0:00:22]} 46. Ba3 {[%emt 0:02:16]} Rb1 {[%emt 0:00:58]} 47. Rc2 {[%emt 0:00:11]} Ne6 {[%emt 0:00:14]} 48. g4 {[%emt 0:02:12]} Nd4 {[%emt 0:00:57]} 49. Rc7 {[%emt 0:01:34]} Bxg4 {[%emt 0:00:20]} 50. d7 {[%emt 0:00:53]} Nf3+ {[%emt 0:01:03]} 51. Kg2 {[%emt 0:00:02]} Nxh4+ {[%emt 0:00:06]} 52. Kg1 {[%emt 0:00:16]} Nf3+ {[%emt 0:00:18]} 53. Kg2 {[%emt 0:00:04]} Nh4+ {[%emt 0:01:54]} 54. Kg1 {[%emt 0:00:04]} Nf3+ {[%emt 0:00:46]} 1/2-1/2

[Event "FIDE WCCC Open-12 2024"]
[Site "Montesilvano"]
[Date "2024.11.18"]
[Round "1.10"]
[White "Le, Anh Tu"]
[Black "Kuandykuly, Danis"]
[Result "0-1"]
[ECO "B56"]
[WhiteElo "1812"]
[BlackElo "2199"]
[PlyCount "90"]
[EventDate "2024.11.18"]
[EventType "swiss"]
[EventCountry "ITA"]
[TimeControl "5400+30"]

1. e4 {[%emt 0:00:20]} c5 {[%emt 0:00:40]} 2. Nf3 {[%emt 0:00:47]} d6 {[%emt 0:00:13]} 3. d4 {[%emt 0:00:29]} cxd4 {[%emt 0:00:09]} 4. Nxd4 {[%emt 0:00:07]} Nf6 {[%emt 0:00:07]} 5. Nc3 {[%emt 0:00:11]} Nc6 {[%emt 0:00:27]} 6. f3 {[%emt 0:00:57]} e5 {[%emt 0:00:41]} 7. Nb3 {[%emt 0:01:38]} Be6 {[%emt 0:00:36]} 8. Bg5 {[%emt 0:00:58]} Be7 {[%emt 0:00:52]} 9. Qd2 {[%emt 0:00:23]} h6 {[%emt 0:01:47]} 10. Be3 {[%emt 0:02:56]} d5 {[%emt 0:00:45]} 11. exd5 {[%emt 0:00:11]} Nxd5 {[%emt 0:00:06]} 12. Nxd5 {[%emt 0:00:21]} Qxd5 {[%emt 0:00:08]} 13. Qxd5 {[%emt 0:01:31]} Bxd5 {[%emt 0:00:08]} 14. O-O-O {[%emt 0:00:11]} O-O-O {[%emt 0:00:05]} 15. c4 {[%emt 0:02:21]} Be6 {[%emt 0:00:14]} 16. Be2 {[%emt 0:00:08]} b6 {[%emt 0:03:01]} 17. Rd3 {[%emt 1:25:31]} Rd7 18. Rxd7 {[%emt 0:00:00]} Rf8 {[%emt 1:29:31]} 19. Rd8+ Rxd8 {[%emt 0:00:00]} 20. Rd1 {[%emt 0:00:00]} Rxd1+ {[%emt 0:00:00]} 21. Kxd1 {[%emt 0:00:00]} f5 {[%emt 0:00:00]} 22. a3 {[%emt 0:00:00]} Bf6 {[%emt 0:00:00]} 23. Kc2 {[%emt 0:00:00]} e4 {[%emt 0:00:00]} 24. fxe4 {[%emt 0:00:00]} fxe4 {[%emt 0:00:00]} 25. Nd2 {[%emt 0:00:00]} Bf5 {[%emt 0:00:00]} 26. h3 {[%emt 0:00:00]} Kc7 {[%emt 0:00:00]} 27. Nf1 {[%emt 0:00:00]} Nd4+ {[%emt 0:00:00]} 28. Bxd4 {[%emt 0:00:00]} Bxd4 {[%emt 0:00:00]} 29. Ng3 {[%emt 0:00:00]} Bh7 {[%emt 0:00:00]} 30. Bg4 {[%emt 0:00:00]} Be5 {[%emt 0:00:00]} 31. Nf1 {[%emt 0:02:07]} Bf4 {[%emt 0:00:00]} 32. Kc3 {[%emt 0:03:12]} Kd6 {[%emt 0:00:00]} 33. Be2 {[%emt 0:01:38]} Be5+ {[%emt 0:00:00]} 34. Kc2 {[%emt 0:00:19]} Bd4 {[%emt 0:00:00]} 35. b4 {[%emt 0:00:43]} Ke5 {[%emt 0:00:00]} 36. Kb3 {[%emt 0:00:40]} Bg6 {[%emt 0:00:00]} 37. Ka4 {[%emt 0:00:39]} Be8+ {[%emt 0:00:00]} 38. Kb3 {[%emt 0:00:07]} Bc6 {[%emt 0:00:00]} 39. g3 {[%emt 0:01:03]} Bd7 {[%emt 0:00:00]} 40. g4 {[%emt 0:00:27]} Kf4 {[%emt 0:00:00]} 41. Kc2 {[%emt 0:00:32]} Ba4+ {[%emt 0:00:00]} 42. Kc1 {[%emt 0:00:31]} e3 {[%emt 0:00:00]} 43. Nh2 {[%emt 0:00:28]} Bc6 {[%emt 0:00:00]} 44. Kd1 {[%emt 0:00:32]} Kg3 {[%emt 0:00:00]} 45. Nf1+ {[%emt 0:00:06]} Kf2 {[%emt 0:00:00]} 0-1

[Event "FIDE WCCC Open-12 2024"]
[Site "Montesilvano"]
[Date "2024.11.18"]
[Round "1.11"]
[White "Liu, Patrick"]
[Black "Lee, Tsuen Jin Aiesec"]
[Result "1-0"]
[ECO "C02"]
[WhiteElo "2192"]
[BlackElo "1806"]
[PlyCount "50"]
[EventDate "2024.11.18"]
[EventType "swiss"]
[EventCountry "ITA"]
[TimeControl "5400+30"]

1. e4 {[%emt 0:00:01]} e6 {[%emt 0:00:07]} 2. d4 {[%emt 0:00:05]} d5 {[%emt 0:00:04]} 3. e5 {[%emt 0:00:03]} c5 {[%emt 0:00:03]} 4. c3 {[%emt 0:00:04]} Nc6 {[%emt 0:00:02]} 5. Nf3 {[%emt 0:00:06]} Qb6 {[%emt 0:00:03]} 6. Bd3 {[%emt 0:00:26]} cxd4 {[%emt 0:00:03]} 7. O-O {[%emt 0:00:12]} Bd7 {[%emt 0:00:02]} 8. Re1 {[%emt 0:00:12]} Nge7 {[%emt 0:00:04]} 9. h4 {[%emt 0:00:17]} h6 {[%emt 0:00:07]} 10. h5 {[%emt 0:00:21]} a6 {[%emt 0:00:25]} 11. Nbd2 {[%emt 0:00:47]} dxc3 {[%emt 0:02:36]} 12. bxc3 {[%emt 0:00:03]} Na5 {[%emt 0:00:31]} 13. Ba3 {[%emt 0:03:35]} Nec6 {[%emt 0:01:08]} 14. Rb1 {[%emt 0:03:30]} Qc7 {[%emt 0:00:08]} 15. Bxf8 {[%emt 0:00:13]} Rxf8 {[%emt 0:00:04]} 16. c4 {[%emt 0:01:47]} dxc4 {[%emt 0:00:38]} 17. Nxc4 {[%emt 0:07:54]} Nxc4 {[%emt 0:00:15]} 18. Bxc4 {[%emt 0:00:05]} O-O-O {[%emt 0:01:14]} 19. Qe2 {[%emt 0:01:16]} Nb8 {[%emt 0:01:42]} 20. Nd4 {[%emt 0:06:32]} Nc6 {[%emt 0:06:04]} 21. Nxc6 {[%emt 0:07:02]} Bxc6 {[%emt 0:00:20]} 22. Rec1 {[%emt 0:00:10]} Rd4 {[%emt 0:01:27]} 23. Bxa6 {[%emt 0:04:44]} Re4 {[%emt 0:01:53]} 24. Bxb7+ {[%emt 0:00:32]} Kd8 {[%emt 0:03:51]} 25. Qd3+ {[%emt 0:01:07]} Ke8 {[%emt 1:20:09]} 1-0

[Event "FIDE WCCC Open-12 2024"]
[Site "Montesilvano"]
[Date "2024.11.18"]
[Round "1.12"]
[White "Liu, Richard Jingjie"]
[Black "Radzimski, Antoni"]
[Result "0-1"]
[ECO "C56"]
[WhiteElo "1795"]
[BlackElo "2188"]
[PlyCount "68"]
[EventDate "2024.11.18"]
[EventType "swiss"]
[EventCountry "ITA"]
[TimeControl "5400+30"]

1. e4 {[%emt 0:00:03]} e5 {[%emt 0:00:04]} 2. Nf3 {[%emt 0:00:03]} Nc6 {[%emt 0:00:05]} 3. Bc4 {[%emt 0:00:03]} Nf6 {[%emt 0:00:06]} 4. d4 {[%emt 0:00:06]} exd4 {[%emt 0:00:21]} 5. e5 {[%emt 0:00:09]} d5 {[%emt 0:00:07]} 6. Bb5 {[%emt 0:00:07]} Nd7 {[%emt 0:00:06]} 7. O-O {[%emt 0:00:10]} Be7 {[%emt 0:00:09]} 8. Bxc6 {[%emt 0:00:07]} bxc6 {[%emt 0:00:04]} 9. Nxd4 {[%emt 0:00:03]} Nb8 {[%emt 0:00:17]} 10. c4 {[%emt 0:00:06]} O-O {[%emt 0:13:01]} 11. Nc3 {[%emt 0:00:01]} c5 {[%emt 0:06:43]} 12. Nb3 {[%emt 0:02:23]} d4 {[%emt 0:12:00]} 13. Nd5 {[%emt 0:01:51]} Be6 {[%emt 0:01:37]} 14. Nxe7+ {[%emt 0:01:48]} Qxe7 {[%emt 0:00:34]} 15. Qd3 {[%emt 0:00:31]} Nc6 {[%emt 0:02:17]} 16. f4 {[%emt 0:01:28]} Nb4 {[%emt 0:01:36]} 17. Qe2 {[%emt 0:01:44]} Bf5 {[%emt 0:00:41]} 18. Qf3 {[%emt 0:12:36]} Bd3 {[%emt 0:05:58]} 19. Rd1 {[%emt 0:02:45]} Bxc4 {[%emt 0:01:10]} 20. Bd2 {[%emt 0:00:28]} Bd5 {[%emt 0:01:14]} 21. Qg3 {[%emt 0:01:00]} Nc6 {[%emt 0:02:16]} 22. Rac1 {[%emt 0:06:19]} c4 {[%emt 0:01:59]} 23. Na5 {[%emt 0:00:08]} Nxa5 {[%emt 0:03:35]} 24. Bxa5 {[%emt 1:08:31]} d3 {[%emt 0:01:58]} 25. Bc3 {[%emt 0:00:00]} Be6 {[%emt 0:05:03]} 26. Qf3 {[%emt 0:00:00]} Qd7 {[%emt 0:01:01]} 27. h3 {[%emt 0:00:00]} Bd5 {[%emt 0:04:03]} 28. Qf2 {[%emt 0:00:00]} Qf5 {[%emt 0:01:10]} 29. Qe3 {[%emt 0:00:00]} h5 {[%emt 0:00:48]} 30. Rd2 {[%emt 0:00:00]} Rfe8 {[%emt 0:00:24]} 31. Qg3 {[%emt 0:00:00]} Re6 {[%emt 0:06:03]} 32. Rf1 {[%emt 0:00:00]} Rg6 {[%emt 0:00:33]} 33. Qe3 {[%emt 0:00:00]} h4 {[%emt 0:01:08]} 34. Rdd1 {[%emt 0:00:00]} Rxg2+ {[%emt 0:00:21]} 0-1

[Event "FIDE WCCC Open-12 2024"]
[Site "Montesilvano"]
[Date "2024.11.18"]
[Round "1.13"]
[White "Diachek, Andrii"]
[Black "Zhang, Sean"]
[Result "1-0"]
[ECO "B51"]
[WhiteElo "2162"]
[BlackElo "1789"]
[PlyCount "53"]
[EventDate "2024.11.18"]
[EventType "swiss"]
[EventCountry "ITA"]
[TimeControl "5400+30"]

1. e4 {[%emt 0:00:03]} c5 {[%emt 0:00:06]} 2. Nf3 {[%emt 0:00:04]} Nc6 {[%emt 0:00:03]} 3. Bb5 {[%emt 0:00:15]} d6 {[%emt 0:00:15]} 4. O-O {[%emt 0:01:46]} Bd7 {[%emt 0:01:02]} 5. Re1 {[%emt 0:00:46]} a6 {[%emt 0:01:06]} 6. Bf1 {[%emt 0:01:10]} Nf6 {[%emt 0:00:07]} 7. c3 {[%emt 0:01:16]} e6 {[%emt 0:08:11]} 8. d4 {[%emt 0:01:57]} cxd4 {[%emt 0:00:43]} 9. cxd4 {[%emt 0:00:12]} d5 {[%emt 0:00:06]} 10. e5 {[%emt 0:02:41]} Ne4 {[%emt 0:00:32]} 11. Nbd2 {[%emt 0:02:32]} Nxd2 {[%emt 0:01:05]} 12. Bxd2 {[%emt 0:00:16]} Be7 {[%emt 0:00:20]} 13. Bc3 {[%emt 0:06:31]} O-O {[%emt 0:03:16]} 14. Bd3 {[%emt 0:04:19]} b5 {[%emt 0:11:53]} 15. Bb1 {[%emt 0:06:49]} Rc8 {[%emt 0:02:21]} 16. Qd3 {[%emt 0:06:03]} g6 {[%emt 0:00:58]} 17. Qe3 {[%emt 0:01:25]} Re8 {[%emt 0:02:38]} 18. Qf4 {[%emt 0:05:33]} Qc7 {[%emt 0:14:40]} 19. Qh6 {[%emt 0:08:34]} Bf8 {[%emt 0:00:40]} 20. Qh4 {[%emt 0:02:06]} Qd8 {[%emt 0:02:13]} 21. Qf4 {[%emt 0:01:33]} Be7 {[%emt 0:05:13]} 22. h4 {[%emt 0:01:58]} Bb4 {[%emt 0:13:07]} 23. Bxb4 {[%emt 0:04:04]} Nxb4 {[%emt 0:00:08]} 24. Qh6 {[%emt 0:00:44]} f6 {[%emt 0:03:08]} 25. Bxg6 {[%emt 0:00:49]} hxg6 {[%emt 0:00:08]} 26. Qxg6+ {[%emt 0:00:03]} Kh8 {[%emt 0:00:13]} 27. exf6 {[%emt 0:00:08]} 1-0

[Event "FIDE WCCC Open-12 2024"]
[Site "Montesilvano"]
[Date "2024.11.18"]
[Round "1.14"]
[White "Simiyu Jadon"]
[Black "Guo, Ethan"]
[Result "1-0"]
[ECO "B55"]
[WhiteElo "1784"]
[BlackElo "2157"]
[PlyCount "59"]
[EventDate "2024.11.18"]
[EventType "swiss"]
[EventCountry "ITA"]
[TimeControl "5400+30"]

1. e4 {[%emt 0:00:07]} c5 {[%emt 0:00:03]} 2. Nf3 {[%emt 0:00:11]} d6 {[%emt 0:00:03]} 3. d4 {[%emt 0:00:07]} cxd4 {[%emt 0:00:04]} 4. Nxd4 {[%emt 0:00:08]} Nf6 {[%emt 0:00:03]} 5. Bd3 {[%emt 0:00:20]} Nc6 {[%emt 0:01:45]} 6. Ne2 {[%emt 0:00:11]} g6 {[%emt 0:00:31]} 7. O-O {[%emt 0:00:09]} Bg7 {[%emt 0:00:04]} 8. c4 {[%emt 1:33:17]} O-O {[%emt 0:00:49]} 9. Nbc3 {[%emt 0:00:00]} Ne5 {[%emt 0:01:20]} 10. b3 {[%emt 0:00:00]} Nfd7 {[%emt 0:02:29]} 11. Be3 {[%emt 0:00:00]} Ng4 {[%emt 0:02:40]} 12. Bf4 {[%emt 0:00:00]} Nc5 {[%emt 0:05:14]} 13. h3 {[%emt 0:00:00]} Ne5 {[%emt 0:00:42]} 14. Bc2 {[%emt 0:00:00]} Bd7 {[%emt 0:01:24]} 15. Qd2 {[%emt 0:00:00]} a5 {[%emt 0:03:24]} 16. Bh6 {[%emt 0:00:00]} a4 {[%emt 0:07:55]} 17. Bxg7 {[%emt 0:00:00]} Kxg7 {[%emt 0:00:09]} 18. f4 {[%emt 0:00:00]} Nc6 {[%emt 0:00:59]} 19. Nd5 {[%emt 0:00:00]} e6 {[%emt 0:13:34]} 20. Ne3 {[%emt 0:00:00]} axb3 {[%emt 0:01:46]} 21. axb3 {[%emt 0:00:00]} Qb6 {[%emt 0:01:16]} 22. f5 {[%emt 0:00:00]} Rxa1 {[%emt 0:00:48]} 23. Rxa1 {[%emt 0:00:00]} Nb4 {[%emt 0:06:49]} 24. Kh1 {[%emt 0:00:00]} Nxc2 {[%emt 0:01:32]} 25. Ng4 {[%emt 0:00:00]} f6 {[%emt 0:47:37]} 26. Qh6+ {[%emt 0:00:00]} Kf7 {[%emt 0:00:00]} 27. Qxh7+ {[%emt 0:00:00]} Ke8 {[%emt 0:00:00]} 28. Ra8+ {[%emt 0:00:00]} Qd8 {[%emt 0:00:00]} 29. Nxf6+ {[%emt 0:00:00]} Rxf6 {[%emt 0:00:00]} 30. Qg8+ {[%emt 0:00:00]} 1-0

[Event "FIDE WCCC Open-12 2024"]
[Site "Montesilvano"]
[Date "2024.11.18"]
[Round "1.15"]
[White "Shilon Rahav, Eliran"]
[Black "Pham, Le Thao Nguyen"]
[Result "1-0"]
[ECO "B50"]
[WhiteElo "2150"]
[BlackElo "2384"]
[PlyCount "83"]
[EventDate "2024.11.18"]
[EventType "swiss"]
[EventCountry "ITA"]
[TimeControl "5400+30"]

1. e4 {[%emt 0:00:05]} c5 {[%emt 0:00:25]} 2. Nf3 {[%emt 0:00:06]} d6 {[%emt 0:00:46]} 3. Nc3 {[%emt 0:00:07]} Nf6 {[%emt 0:00:46]} 4. e5 {[%emt 0:00:07]} dxe5 {[%emt 0:01:54]} 5. Nxe5 {[%emt 0:00:06]} a6 {[%emt 0:15:39]} 6. g3 {[%emt 0:00:18]} Qd6 {[%emt 0:08:43]} 7. Nf3 {[%emt 0:00:38]} Bg4 {[%emt 0:19:23]} 8. Bg2 {[%emt 0:01:56]} Nc6 {[%emt 0:02:21]} 9. O-O {[%emt 0:06:52]} e6 {[%emt 0:14:12]} 10. d3 {[%emt 0:05:16]} Nd4 {[%emt 0:01:12]} 11. Re1 {[%emt 0:03:20]} Qd7 {[%emt 0:02:52]} 12. Bf4 {[%emt 0:24:35]} Be7 {[%emt 0:03:16]} 13. Ne4 {[%emt 0:15:05]} Nxe4 {[%emt 0:05:06]} 14. Rxe4 {[%emt 0:00:49]} Bf6 {[%emt 0:07:19]} 15. c3 {[%emt 0:02:01]} Nxf3+ {[%emt 0:00:50]} 16. Bxf3 {[%emt 0:00:13]} Bxf3 {[%emt 0:00:27]} 17. Qxf3 {[%emt 0:00:02]} Rd8 {[%emt 0:00:56]} 18. Rd1 {[%emt 0:01:24]} Qd5 {[%emt 0:00:42]} 19. a3 {[%emt 0:02:48]} O-O {[%emt 0:01:06]} 20. Qe3 {[%emt 0:02:52]} Qh5 {[%emt 0:05:40]} 21. Rd2 {[%emt 0:00:49]} Rd5 {[%emt 0:00:27]} 22. Bc7 {[%emt 0:02:25]} Rc8 {[%emt 0:00:46]} 23. Rxe6 {[%emt 0:01:25]} Rf8 {[%emt 0:03:40]} 24. Re8 {[%emt 0:01:56]} Qf5 {[%emt 0:01:29]} 25. Re2 {[%emt 0:01:53]} g5 {[%emt 0:01:45]} 26. Re4 {[%emt 0:01:44]} Qd7 {[%emt 0:00:47]} 27. Be5 {[%emt 0:01:08]} Rxd3 {[%emt 0:00:30]} 28. Qxc5 {[%emt 0:00:25]} Be7 {[%emt 0:00:57]} 29. Qc4 {[%emt 0:00:30]} b5 {[%emt 0:00:27]} 30. Qb3 {[%emt 0:00:11]} Bc5 {[%emt 0:00:30]} 31. Qc2 {[%emt 0:00:51]} f5 {[%emt 0:00:30]} 32. Rd4 {[%emt 0:03:09]} Bxd4 {[%emt 0:00:10]} 33. Bxd4 {[%emt 0:04:20]} Rf3 {[%emt 0:00:51]} 34. Re5 {[%emt 0:00:59]} Re8 {[%emt 0:00:33]} 35. Qe2 {[%emt 0:00:51]} Rxe5 {[%emt 0:00:13]} 36. Qxe5 {[%emt 0:00:01]} Rd3 {[%emt 0:00:36]} 37. Qh8+ {[%emt 0:00:22]} Kf7 {[%emt 0:00:07]} 38. Qxh7+ {[%emt 0:00:13]} Ke6 {[%emt 0:00:26]} 39. Qg6+ {[%emt 0:02:12]} Kd5 {[%emt 0:00:07]} 40. Qxg5 {[%emt 0:00:20]} Kc4 {[%emt 0:01:03]} 41. Qg8+ {[%emt 0:00:11]} Qd5 {[%emt 0:00:09]} 42. b3+ {[%emt 0:00:01]} 1-0

[Event "FIDE WCCC Open-12 2024"]
[Site "Montesilvano"]
[Date "2024.11.18"]
[Round "1.16"]
[White "Wang, Zihao(Sh)"]
[Black "Golubovic, Erik"]
[Result "0-1"]
[ECO "B92"]
[WhiteElo "1838"]
[BlackElo "2147"]
[PlyCount "242"]
[EventDate "2024.11.18"]
[EventType "swiss"]
[EventCountry "ITA"]
[TimeControl "5400+30"]

1. e4 {[%emt 0:00:08]} c5 {[%emt 0:00:08]} 2. Nf3 {[%emt 0:00:17]} d6 {[%emt 0:00:18]} 3. d4 {[%emt 0:00:12]} cxd4 {[%emt 0:00:06]} 4. Nxd4 {[%emt 0:00:12]} Nf6 {[%emt 0:00:12]} 5. Nc3 {[%emt 0:00:05]} a6 {[%emt 0:00:26]} 6. Be2 {[%emt 0:00:55]} e5 {[%emt 0:01:37]} 7. Nb3 {[%emt 0:00:37]} Be7 {[%emt 0:01:42]} 8. Be3 {[%emt 0:00:27]} Be6 {[%emt 0:02:42]} 9. O-O {[%emt 0:01:32]} O-O {[%emt 0:00:29]} 10. Qd2 {[%emt 0:00:40]} Nbd7 {[%emt 0:01:07]} 11. a4 {[%emt 0:00:58]} Rc8 {[%emt 0:01:29]} 12. a5 {[%emt 0:02:09]} Qc7 {[%emt 0:02:02]} 13. Rfd1 {[%emt 0:01:30]} Qc6 {[%emt 0:06:40]} 14. Bf3 {[%emt 0:00:52]} Rfe8 {[%emt 0:05:16]} 15. Qe1 {[%emt 0:05:05]} h6 {[%emt 0:01:52]} 16. Nc1 {[%emt 0:01:41]} Nc5 {[%emt 0:19:55]} 17. N1a2 {[%emt 0:09:11]} Qc7 {[%emt 0:15:26]} 18. Nb4 {[%emt 0:02:31]} Ncd7 {[%emt 0:00:52]} 19. Na4 {[%emt 0:04:25]} Bd8 {[%emt 0:05:44]} 20. Nb6 {[%emt 0:04:09]} Nxb6 {[%emt 0:00:08]} 21. axb6 {[%emt 0:00:29]} Qb8 {[%emt 0:03:32]} 22. Qd2 {[%emt 0:04:24]} Nd7 {[%emt 0:01:15]} 23. b3 {[%emt 0:01:58]} Bxb6 {[%emt 0:05:28]} 24. Bxb6 {[%emt 0:01:09]} Nxb6 {[%emt 0:00:01]} 25. Qxd6 {[%emt 0:00:07]} Qxd6 {[%emt 0:00:45]} 26. Rxd6 {[%emt 0:00:02]} Nd7 {[%emt 0:00:21]} 27. Rd2 {[%emt 0:03:10]} Rc3 {[%emt 0:01:18]} 28. Bd1 {[%emt 0:04:10]} Nf6 {[%emt 0:01:41]} 29. f3 {[%emt 0:00:37]} Rec8 {[%emt 0:00:37]} 30. Ra5 {[%emt 0:02:19]} Nd7 {[%emt 0:01:10]} 31. Na2 {[%emt 0:02:38]} R3c5 {[%emt 0:01:00]} 32. Ra3 {[%emt 0:01:49]} Nb6 {[%emt 0:01:47]} 33. c4 {[%emt 0:02:57]} Bxc4 {[%emt 0:01:01]} 34. Rd6 {[%emt 0:07:11]} Bb5 {[%emt 0:02:16]} 35. Nb4 {[%emt 0:07:52]} Rc1 {[%emt 0:01:48]} 36. Kf2 {[%emt 0:01:37]} Nd7 {[%emt 0:01:05]} 37. Ra2 {[%emt 0:04:21]} Nc5 {[%emt 0:01:52]} 38. Rad2 {[%emt 0:02:28]} Ne6 {[%emt 0:01:05]} 39. Nd5 {[%emt 0:01:09]} Kh7 {[%emt 0:00:45]} 40. Ne7 {[%emt 0:01:53]} R8c7 {[%emt 0:02:20]} 41. Nf5 {[%emt 0:00:23]} Rb1 {[%emt 0:02:06]} 42. Bc2 {[%emt 0:02:26]} Rb2 {[%emt 0:00:54]} 43. Bd1 {[%emt 0:00:26]} Rxd2+ {[%emt 0:00:53]} 44. Rxd2 {[%emt 0:00:04]} Rd7 {[%emt 0:02:45]} 45. Rxd7 {[%emt 0:00:50]} Bxd7 {[%emt 0:00:01]} 46. Nd6 {[%emt 0:00:53]} Nd8 {[%emt 0:00:41]} 47. b4 {[%emt 0:01:48]} Kg8 {[%emt 0:01:17]} 48. Be2 {[%emt 0:03:31]} Kf8 {[%emt 0:01:06]} 49. Nc4 {[%emt 0:00:13]} f6 {[%emt 0:02:05]} 50. Nb6 {[%emt 0:01:00]} Be6 {[%emt 0:00:37]} 51. Ke3 {[%emt 0:01:01]} Nc6 {[%emt 0:00:55]} 52. b5 {[%emt 0:00:06]} axb5 {[%emt 0:00:06]} 53. Bxb5 {[%emt 0:00:05]} Nd4 {[%emt 0:00:36]} 54. Bf1 {[%emt 0:02:37]} Ke7 {[%emt 0:00:21]} 55. Kd3 {[%emt 0:00:21]} Kd6 {[%emt 0:00:43]} 56. Kc3 {[%emt 0:00:05]} Kc6 {[%emt 0:01:29]} 57. Na4 {[%emt 0:00:48]} b5 {[%emt 0:00:49]} 58. Nb2 {[%emt 0:00:05]} Kc5 {[%emt 0:01:30]} 59. Nd3+ {[%emt 0:00:07]} Kb6 {[%emt 0:00:06]} 60. Nb4 {[%emt 0:00:19]} Ka5 {[%emt 0:00:42]} 61. Bd3 {[%emt 0:00:36]} Bf7 {[%emt 0:00:46]} 62. Bf1 {[%emt 0:00:46]} Kb6 {[%emt 0:01:06]} 63. Bd3 {[%emt 0:00:23]} Kc5 {[%emt 0:00:31]} 64. Na6+ {[%emt 0:00:15]} Kb6 {[%emt 0:00:08]} 65. Nb4 {[%emt 0:00:43]} Ne6 {[%emt 0:00:50]} 66. g3 {[%emt 0:04:26]} Nc5 {[%emt 0:00:30]} 67. Bc2 {[%emt 0:01:13]} Nb7 {[%emt 0:00:33]} 68. f4 {[%emt 0:09:04]} Nd6 {[%emt 0:00:30]} 69. f5 {[%emt 0:00:00]} Bc4 {[%emt 0:00:25]} 70. Bb1 {[%emt 0:00:00]} Be2 {[%emt 0:00:33]} 71. Nd5+ {[%emt 0:00:00]} Kc6 {[%emt 0:00:16]} 72. Kd2 {[%emt 0:00:00]} Bf3 {[%emt 0:00:19]} 73. Ke3 {[%emt 0:00:00]} Bh5 {[%emt 0:00:33]} 74. Kd3 {[%emt 0:01:24]} Bf7 {[%emt 0:00:50]} 75. Nb4+ {[%emt 0:00:11]} Kc5 {[%emt 0:00:12]} 76. Kc3 {[%emt 0:00:12]} Bh5 {[%emt 0:00:53]} 77. Nd3+ {[%emt 0:00:34]} Kb6 {[%emt 0:00:08]} 78. Nf2 {[%emt 0:00:12]} Be8 {[%emt 0:00:49]} 79. Kb4 {[%emt 0:00:12]} Bc6 {[%emt 0:00:17]} 80. Bc2 {[%emt 0:00:51]} Nb7 {[%emt 0:00:22]} 81. Kc3 {[%emt 0:00:43]} Nc5 {[%emt 0:00:33]} 82. Kb4 {[%emt 0:00:12]} Na6+ {[%emt 0:00:14]} 83. Kc3 {[%emt 0:00:12]} Ka5 {[%emt 0:00:53]} 84. h4 {[%emt 0:02:27]} Nc5 {[%emt 0:00:29]} 85. g4 {[%emt 0:00:27]} Na4+ {[%emt 0:00:40]} 86. Kb3 {[%emt 0:00:11]} Be8 {[%emt 0:00:26]} 87. Nd3 {[%emt 0:00:14]} Bf7+ {[%emt 0:00:14]} 88. Ka3 {[%emt 0:00:02]} Nb6 {[%emt 0:00:43]} 89. Kb2 {[%emt 0:01:01]} Nc4+ {[%emt 0:00:35]} 90. Kc3 {[%emt 0:00:07]} Ne3 {[%emt 0:00:38]} 91. g5 {[%emt 0:00:03]} Ng2 {[%emt 0:00:29]} 92. g6 {[%emt 0:00:25]} Bc4 {[%emt 0:00:31]} 93. Nc5 {[%emt 0:00:55]} Kb6 {[%emt 0:00:27]} 94. Kb4 {[%emt 0:00:31]} Nxh4 {[%emt 0:00:28]} 95. Bd1 {[%emt 0:00:44]} Kc6 {[%emt 0:00:33]} 96. Bg4 {[%emt 0:00:46]} Ng2 {[%emt 0:00:18]} 97. Ne6 {[%emt 0:00:27]} Bxe6 {[%emt 0:00:12]} 98. fxe6 {[%emt 0:00:02]} Kd6 {[%emt 0:00:15]} 99. Kxb5 {[%emt 0:00:06]} Nf4 {[%emt 0:00:16]} 100. Bf5 {[%emt 0:00:59]} h5 {[%emt 0:00:53]} 101. Kc4 {[%emt 0:00:23]} h4 {[%emt 0:00:28]} 102. Kc3 {[%emt 0:00:28]} h3 {[%emt 0:00:23]} 103. Bg4 {[%emt 0:00:02]} h2 {[%emt 0:00:14]} 104. Bf3 {[%emt 0:00:01]} Ne2+ {[%emt 0:00:16]} 105. Kd3 {[%emt 0:00:22]} Ng3 {[%emt 0:00:08]} 106. Ke3 {[%emt 0:00:06]} h1=Q {[%emt 0:00:11]} 107. Bxh1 {[%emt 0:00:01]} Nxh1 {[%emt 0:00:12]} 108. Kf3 {[%emt 0:00:01]} Kxe6 {[%emt 0:00:13]} 109. Kg2 {[%emt 0:00:10]} f5 {[%emt 0:00:06]} 110. exf5+ {[%emt 0:00:02]} Kxf5 {[%emt 0:00:04]} 111. Kxh1 {[%emt 0:00:03]} Kxg6 {[%emt 0:00:10]} 112. Kg2 {[%emt 0:00:02]} Kf5 {[%emt 0:00:09]} 113. Kf3 {[%emt 0:00:02]} e4+ {[%emt 0:00:07]} 114. Ke3 {[%emt 0:00:02]} Ke5 {[%emt 0:00:05]} 115. Ke2 {[%emt 0:00:03]} Kf4 {[%emt 0:00:05]} 116. Kf2 {[%emt 0:00:02]} e3+ {[%emt 0:00:06]} 117. Ke2 {[%emt 0:00:01]} Ke4 {[%emt 0:00:06]} 118. Ke1 {[%emt 0:00:01]} Kf3 {[%emt 0:00:08]} 119. Kf1 {[%emt 0:00:02]} e2+ {[%emt 0:00:08]} 120. Ke1 {[%emt 0:00:00]} g5 {[%emt 0:00:09]} 121. Kd2 {[%emt 0:00:03]} Kf2 {[%emt 0:00:07]} 0-1